[Event "Titled Tuesday Blitz June 27 Late 2023"]
[White "D`Arruda, Ricardo D."]
[Black "Nakamura, Hikaru"]
[WhiteFideId "100692"]
[BlackFideId "2016192"]
[WhiteElo "2530"]
[BlackElo "3212"]
[Result "0-1"]
[Round "1"]
[TimeControl "180+2"]
[Date "2023.06.27"]
[WhiteClock "0:01:04"]
[BlackClock "0:02:20"]
[Board "2"]

1. d4 {[%clk 0:02:57]}  Nf6 {[%clk 0:02:58]} 2. Nf3 {[%clk 0:02:57]}  b6 {[%clk 0:02:56]} 3. Nc3 {[%clk 0:02:57]}  Bb7 {[%clk 0:02:56]} 4. g3 {[%clk 0:02:57]}  c5 {[%clk 0:02:54]} 5. d5 {[%clk 0:02:51]}  e6 {[%clk 0:02:54]} 6. e4 {[%clk 0:02:51]}  exd5 {[%clk 0:02:54]} 7. exd5 {[%clk 0:02:52]}  Bd6 {[%clk 0:02:53]} 8. Bg2 {[%clk 0:02:51]}  O-O {[%clk 0:02:53]} 9. O-O {[%clk 0:02:51]}  h6 {[%clk 0:02:54]} 10. Nb5 {[%clk 0:02:43]}  Ne8 {[%clk 0:02:53]} 11. Nxd6 {[%clk 0:02:42]}  Nxd6 {[%clk 0:02:54]} 12. Bf4 {[%clk 0:02:40]}  Ne8 {[%clk 0:02:50]} 13. c4 {[%clk 0:02:32]}  d6 {[%clk 0:02:49]} 14. Re1 {[%clk 0:02:32]}  Nd7 {[%clk 0:02:49]} 15. Qc2 {[%clk 0:02:30]}  Ndf6 {[%clk 0:02:48]} 16. Re2 {[%clk 0:02:29]}  Bc8 {[%clk 0:02:48]} 17. Rae1 {[%clk 0:02:27]}  Bg4 {[%clk 0:02:48]} 18. h3 {[%clk 0:02:26]}  Bh5 {[%clk 0:02:48]} 19. g4 {[%clk 0:02:18]}  Bg6 {[%clk 0:02:48]} 20. Qd2 {[%clk 0:02:15]}  b5 {[%clk 0:02:40]} 21. b3 {[%clk 0:02:06]}  bxc4 {[%clk 0:02:40]} 22. bxc4 {[%clk 0:02:07]}  Rb8 {[%clk 0:02:40]} 23. Nh4 {[%clk 0:02:05]}  Bh7 {[%clk 0:02:40]} 24. Nf5 {[%clk 0:02:05]}  Bxf5 {[%clk 0:02:38]} 25. gxf5 {[%clk 0:02:05]}  Rb4 {[%clk 0:02:38]} 26. Bf1 {[%clk 0:02:01]}  Nc7 {[%clk 0:02:35]} 27. Re7 {[%clk 0:01:55]}  Re8 {[%clk 0:02:29]} 28. Qe3 {[%clk 0:01:38]}  Rxe7 {[%clk 0:02:26]} 29. Qxe7 {[%clk 0:01:39]}  Qxe7 {[%clk 0:02:26]} 30. Rxe7 {[%clk 0:01:38]}  Ncxd5 {[%clk 0:02:26]} 31. cxd5 {[%clk 0:01:29]}  Rxf4 {[%clk 0:02:27]} 32. Rxa7 {[%clk 0:01:28]}  Nxd5 {[%clk 0:02:27]} 33. a4 {[%clk 0:01:25]}  c4 {[%clk 0:02:26]} 34. a5 {[%clk 0:01:21]}  c3 {[%clk 0:02:27]} 35. Bd3 {[%clk 0:01:21]}  Rd4 {[%clk 0:02:22]} 36. Ra8+ {[%clk 0:01:21]}  Kh7 {[%clk 0:02:22]} 37. Bc2 {[%clk 0:01:21]}  Nb4 {[%clk 0:02:21]} 38. Bb3 {[%clk 0:01:18]}  c2 {[%clk 0:02:20]} 39. Rc8 {[%clk 0:01:16]}  Rd1+ {[%clk 0:02:20]} 40. Kg2 {[%clk 0:01:04]}  c1=Q {[%clk 0:02:20]} 0-1


[Site "https://www.chess.com"]

[Event "Titled Tuesday Blitz June 27 Late 2023"]
[White "Nihal Sarin"]
[Black "Dushyant Sharma"]
[WhiteFideId "25092340"]
[BlackFideId "25065130"]
[WhiteElo "3121"]
[BlackElo "2529"]
[Result "1-0"]
[Round "1"]
[TimeControl "180+2"]
[Date "2023.06.27"]
[WhiteClock "0:01:34"]
[BlackClock "0:00:03"]
[Board "3"]

1. Nf3 {[%clk 0:02:59]}  d5 {[%clk 0:02:54]} 2. d4 {[%clk 0:02:59]}  e6 {[%clk 0:02:52]} 3. c4 {[%clk 0:03:00]}  Nf6 {[%clk 0:02:52]} 4. g3 {[%clk 0:03:00]}  Be7 {[%clk 0:02:52]} 5. Bg2 {[%clk 0:02:35]}  O-O {[%clk 0:02:51]} 6. Qd3 {[%clk 0:02:30]}  c5 {[%clk 0:02:44]} 7. O-O {[%clk 0:02:27]}  dxc4 {[%clk 0:02:43]} 8. Qxc4 {[%clk 0:02:26]}  Nc6 {[%clk 0:02:44]} 9. dxc5 {[%clk 0:02:25]}  e5 {[%clk 0:02:44]} 10. Nc3 {[%clk 0:02:23]}  Be6 {[%clk 0:02:45]} 11. Qb5 {[%clk 0:02:22]}  Qc7 {[%clk 0:02:43]} 12. Ng5 {[%clk 0:02:20]}  Bd7 {[%clk 0:02:23]} 13. Qd3 {[%clk 0:02:18]}  g6 {[%clk 0:02:12]} 14. Nge4 {[%clk 0:02:13]}  Nxe4 {[%clk 0:01:51]} 15. Qxe4 {[%clk 0:02:12]}  Bf5 {[%clk 0:01:09]} 16. Qc4 {[%clk 0:02:08]}  Qa5 {[%clk 0:00:52]} 17. Be3 {[%clk 0:02:04]}  Rac8 {[%clk 0:00:38]} 18. Nd5 {[%clk 0:02:04]}  Bd8 {[%clk 0:00:37]} 19. b4 {[%clk 0:02:00]}  Qa4 {[%clk 0:00:27]} 20. Qb3 {[%clk 0:01:56]}  Qb5 {[%clk 0:00:19]} 21. Rfe1 {[%clk 0:01:57]}  Nd4 {[%clk 0:00:11]} 22. Qb2 {[%clk 0:01:51]}  Be6 {[%clk 0:00:06]} 23. Bxd4 {[%clk 0:01:47]}  exd4 {[%clk 0:00:07]} 24. Qxd4 {[%clk 0:01:48]}  f6 {[%clk 0:00:07]} 25. Nf4 {[%clk 0:01:46]}  Bf7 {[%clk 0:00:07]} 26. a4 {[%clk 0:01:45]}  Qe8 {[%clk 0:00:06]} 27. Bxb7 {[%clk 0:01:44]}  Rb8 {[%clk 0:00:05]} 28. Bd5 {[%clk 0:01:45]}  Bc7 {[%clk 0:00:05]} 29. Bxf7+ {[%clk 0:01:42]}  Rxf7 {[%clk 0:00:06]} 30. Qc4 {[%clk 0:01:37]}  g5 {[%clk 0:00:07]} 31. Nd5 {[%clk 0:01:37]}  Be5 {[%clk 0:00:07]} 32. Ra3 {[%clk 0:01:37]}  Qe6 {[%clk 0:00:06]} 33. b5 {[%clk 0:01:35]}  Kg7 {[%clk 0:00:06]} 34. Rd3 {[%clk 0:01:34]}  Rc8 {[%clk 0:00:06]} 35. c6 {[%clk 0:01:34]}  a6 {[%clk 0:00:06]} 36. Nb6 {[%clk 0:01:34]}  Rcc7 {[%clk 0:00:03]} 37. Qxe6 {[%clk 0:01:34]} 1-0


[Site "https://www.chess.com"]

[Event "Titled Tuesday Blitz June 27 Late 2023"]
[White "Naroditsky, Daniel"]
[Black "Kuzmin, Roman"]
[WhiteFideId "2026961"]
[BlackFideId "44134932"]
[WhiteElo "3102"]
[BlackElo "2528"]
[Result "1-0"]
[Round "1"]
[TimeControl "180+2"]
[Date "2023.06.27"]
[WhiteClock "0:01:27"]
[BlackClock "0:00:35"]
[Board "5"]

1. e4 {[%clk 0:02:58]}  c5 {[%clk 0:02:59]} 2. Nf3 {[%clk 0:02:57]}  d6 {[%clk 0:02:59]} 3. Bb5+ {[%clk 0:02:57]}  Bd7 {[%clk 0:02:58]} 4. a4 {[%clk 0:02:57]}  Nf6 {[%clk 0:02:54]} 5. Nc3 {[%clk 0:02:56]}  g6 {[%clk 0:02:51]} 6. O-O {[%clk 0:02:55]}  Bg7 {[%clk 0:02:50]} 7. e5 {[%clk 0:02:56]}  dxe5 {[%clk 0:02:47]} 8. Nxe5 {[%clk 0:02:57]}  Bxb5 {[%clk 0:02:45]} 9. axb5 {[%clk 0:02:56]}  O-O {[%clk 0:02:35]} 10. Qf3 {[%clk 0:02:56]}  Qc7 {[%clk 0:02:31]} 11. Nc4 {[%clk 0:02:51]}  Nbd7 {[%clk 0:02:29]} 12. d3 {[%clk 0:02:52]}  b6 {[%clk 0:02:16]} 13. Bf4 {[%clk 0:02:44]}  e5 {[%clk 0:02:14]} 14. Bg3 {[%clk 0:02:44]}  Nh5 {[%clk 0:02:01]} 15. Rfe1 {[%clk 0:02:24]}  Rae8 {[%clk 0:01:48]} 16. Qc6 {[%clk 0:02:15]}  Qxc6 {[%clk 0:01:16]} 17. bxc6 {[%clk 0:02:16]}  Nb8 {[%clk 0:01:16]} 18. c7 {[%clk 0:02:06]}  Nc6 {[%clk 0:01:17]} 19. Nd6 {[%clk 0:01:56]}  f5 {[%clk 0:01:08]} 20. Nxe8 {[%clk 0:01:54]}  Rxe8 {[%clk 0:01:08]} 21. Bh4 {[%clk 0:01:47]}  Bf6 {[%clk 0:00:51]} 22. Bxf6 {[%clk 0:01:39]}  Nxf6 {[%clk 0:00:52]} 23. Nb5 {[%clk 0:01:40]}  Rc8 {[%clk 0:00:48]} 24. Nxa7 {[%clk 0:01:40]}  Rxc7 {[%clk 0:00:48]} 25. Nxc6 {[%clk 0:01:40]}  Rxc6 {[%clk 0:00:49]} 26. Rxe5 {[%clk 0:01:40]}  c4 {[%clk 0:00:44]} 27. d4 {[%clk 0:01:34]}  c3 {[%clk 0:00:41]} 28. bxc3 {[%clk 0:01:28]}  Rxc3 {[%clk 0:00:42]} 29. Re7 {[%clk 0:01:26]}  Kf8 {[%clk 0:00:40]} 30. Rb7 {[%clk 0:01:26]}  Rxc2 {[%clk 0:00:40]} 31. Ra8+ {[%clk 0:01:26]}  Ne8 {[%clk 0:00:35]} 32. h4 {[%clk 0:01:27]} 1-0


[Site "https://www.chess.com"]

[Event "Titled Tuesday Blitz June 27 Late 2023"]
[White "Peycheva, Gergana"]
[Black "Bluebaum, Matthias"]
[WhiteFideId "2916711"]
[BlackFideId "24651516"]
[WhiteElo "2528"]
[BlackElo "3065"]
[Result "0-1"]
[Round "1"]
[TimeControl "180+2"]
[Date "2023.06.27"]
[WhiteClock "0:00:04"]
[BlackClock "0:00:49"]
[Board "6"]

1. d4 {[%clk 0:02:59]}  d5 {[%clk 0:02:59]} 2. c4 {[%clk 0:02:59]}  e6 {[%clk 0:02:57]} 3. Nc3 {[%clk 0:02:58]}  Bb4 {[%clk 0:02:57]} 4. Qc2 {[%clk 0:02:57]}  Nf6 {[%clk 0:02:55]} 5. Bg5 {[%clk 0:02:55]}  dxc4 {[%clk 0:02:42]} 6. e3 {[%clk 0:02:43]}  b5 {[%clk 0:02:42]} 7. a4 {[%clk 0:02:37]}  c6 {[%clk 0:02:40]} 8. Nf3 {[%clk 0:02:31]}  Nbd7 {[%clk 0:02:37]} 9. Be2 {[%clk 0:02:26]}  Qb6 {[%clk 0:02:35]} 10. O-O {[%clk 0:02:25]}  Kf8 {[%clk 0:02:35]} 11. Ne5 {[%clk 0:02:03]}  h6 {[%clk 0:02:31]} 12. Bh4 {[%clk 0:01:58]}  Bb7 {[%clk 0:02:27]} 13. Bf3 {[%clk 0:01:52]}  Nxe5 {[%clk 0:02:16]} 14. dxe5 {[%clk 0:01:52]}  Nd7 {[%clk 0:02:16]} 15. Qe4 {[%clk 0:01:46]}  Nc5 {[%clk 0:02:17]} 16. Qf4 {[%clk 0:01:36]}  Nd3 {[%clk 0:02:16]} 17. Qe4 {[%clk 0:01:25]}  Rb8 {[%clk 0:01:57]} 18. Na2 {[%clk 0:01:13]}  c5 {[%clk 0:01:37]} 19. Qg4 {[%clk 0:01:12]}  Nxe5 {[%clk 0:01:34]} 20. Qg3 {[%clk 0:01:12]}  Nxf3+ {[%clk 0:01:33]} 21. gxf3 {[%clk 0:01:12]}  Ba8 {[%clk 0:01:32]} 22. axb5 {[%clk 0:01:07]}  g5 {[%clk 0:01:32]} 23. Qe5 {[%clk 0:01:06]}  Ke7 {[%clk 0:01:00]} 24. Bg3 {[%clk 0:00:59]}  f6 {[%clk 0:00:59]} 25. Qc7+ {[%clk 0:00:54]}  Qxc7 {[%clk 0:00:59]} 26. Bxc7 {[%clk 0:00:55]}  Rxb5 {[%clk 0:00:55]} 27. Rfd1 {[%clk 0:00:22]}  Bxf3 {[%clk 0:00:54]} 28. Bd6+ {[%clk 0:00:17]}  Kf7 {[%clk 0:00:53]} 29. Rdc1 {[%clk 0:00:16]}  Rd8 {[%clk 0:00:51]} 30. Nxb4 {[%clk 0:00:13]}  Rxd6 {[%clk 0:00:49]} 31. Rxa7+ {[%clk 0:00:13]}  Kg6 {[%clk 0:00:49]} 32. Na2 {[%clk 0:00:12]}  Rxb2 {[%clk 0:00:49]} 33. Nc3 {[%clk 0:00:12]}  Rd3 {[%clk 0:00:49]} 34. h3 {[%clk 0:00:12]}  h5 {[%clk 0:00:48]} 35. Kh2 {[%clk 0:00:08]}  h4 {[%clk 0:00:48]} 36. Na4 {[%clk 0:00:08]}  Rxf2+ {[%clk 0:00:48]} 37. Kg1 {[%clk 0:00:08]}  Rg2+ {[%clk 0:00:49]} 38. Kf1 {[%clk 0:00:08]}  Rdd2 {[%clk 0:00:49]} 39. Nxc5 {[%clk 0:00:04]}  Rh2 {[%clk 0:00:49]} 0-1


[Site "https://www.chess.com"]

[Event "Titled Tuesday Blitz June 27 Late 2023"]
[White "Oparin, Grigoriy"]
[Black "Bruedigam, Martin"]
[WhiteFideId "24125890"]
[BlackFideId "24608033"]
[WhiteElo "3022"]
[BlackElo "2523"]
[Result "1-0"]
[Round "1"]
[TimeControl "180+2"]
[Date "2023.06.27"]
[WhiteClock "0:02:04"]
[BlackClock "0:00:13"]
[Board "11"]

1. c4 {[%clk 0:03:00]}  Nf6 {[%clk 0:02:58]} 2. Nf3 {[%clk 0:03:01]}  e6 {[%clk 0:02:55]} 3. g3 {[%clk 0:03:01]}  d5 {[%clk 0:02:55]} 4. Bg2 {[%clk 0:03:02]}  Be7 {[%clk 0:02:55]} 5. d4 {[%clk 0:03:01]}  O-O {[%clk 0:02:55]} 6. Qc2 {[%clk 0:03:02]}  c6 {[%clk 0:02:56]} 7. O-O {[%clk 0:03:01]}  b6 {[%clk 0:02:55]} 8. Nbd2 {[%clk 0:02:58]}  Bb7 {[%clk 0:02:55]} 9. Rd1 {[%clk 0:02:56]}  Nbd7 {[%clk 0:02:55]} 10. e4 {[%clk 0:02:54]}  Rc8 {[%clk 0:02:48]} 11. b3 {[%clk 0:02:46]}  Qc7 {[%clk 0:02:47]} 12. Bb2 {[%clk 0:02:46]}  Rfd8 {[%clk 0:02:45]} 13. Rac1 {[%clk 0:02:43]}  Qb8 {[%clk 0:02:46]} 14. Ne5 {[%clk 0:02:34]}  Nxe5 {[%clk 0:02:18]} 15. dxe5 {[%clk 0:02:35]}  Nd7 {[%clk 0:02:18]} 16. f4 {[%clk 0:02:24]}  Bb4 {[%clk 0:02:09]} 17. a3 {[%clk 0:02:20]}  Bxd2 {[%clk 0:02:06]} 18. Rxd2 {[%clk 0:02:21]}  dxc4 {[%clk 0:01:27]} 19. bxc4 {[%clk 0:02:22]}  Nc5 {[%clk 0:01:19]} 20. Rcd1 {[%clk 0:02:22]}  Rxd2 {[%clk 0:01:19]} 21. Qxd2 {[%clk 0:02:22]}  Ba6 {[%clk 0:01:12]} 22. f5 {[%clk 0:02:17]}  Bxc4 {[%clk 0:01:09]} 23. f6 {[%clk 0:02:16]}  h6 {[%clk 0:00:48]} 24. fxg7 {[%clk 0:02:11]}  Kxg7 {[%clk 0:00:48]} 25. Qf4 {[%clk 0:02:10]}  Nd3 {[%clk 0:00:41]} 26. Qf6+ {[%clk 0:02:10]}  Kg8 {[%clk 0:00:41]} 27. Rxd3 {[%clk 0:02:06]}  Bxd3 {[%clk 0:00:41]} 28. Bc1 {[%clk 0:02:07]}  Kf8 {[%clk 0:00:19]} 29. Bxh6+ {[%clk 0:02:07]}  Ke8 {[%clk 0:00:19]} 30. Qg7 {[%clk 0:02:08]}  c5 {[%clk 0:00:17]} 31. Qf8+ {[%clk 0:02:02]}  Kd7 {[%clk 0:00:18]} 32. Qxf7+ {[%clk 0:02:03]}  Kc6 {[%clk 0:00:18]} 33. Qxe6+ {[%clk 0:02:04]}  Kb7 {[%clk 0:00:13]} 34. Qd5+ {[%clk 0:02:04]} 1-0


[Site "https://www.chess.com"]

[Event "Titled Tuesday Blitz June 27 Late 2023"]
[White "Liu, Casper"]
[Black "He, Anthony"]
[WhiteFideId "1454153"]
[BlackFideId "2088215"]
[WhiteElo "2513"]
[BlackElo "3008"]
[Result "1-0"]
[Round "1"]
[TimeControl "180+2"]
[Date "2023.06.27"]
[WhiteClock "0:01:39"]
[BlackClock "0:01:53"]
[Board "14"]

1. e4 {[%clk 0:02:52]}  c5 {[%clk 0:02:56]} 2. d4 {[%clk 0:02:51]}  cxd4 {[%clk 0:02:55]} 3. Qxd4 {[%clk 0:02:52]}  Nc6 {[%clk 0:02:54]} 4. Qe3 {[%clk 0:02:53]}  g6 {[%clk 0:02:54]} 5. Nc3 {[%clk 0:02:53]}  Bg7 {[%clk 0:02:53]} 6. Bd2 {[%clk 0:02:54]}  Nf6 {[%clk 0:02:53]} 7. O-O-O {[%clk 0:02:55]}  d6 {[%clk 0:02:53]} 8. f3 {[%clk 0:02:55]}  Be6 {[%clk 0:02:53]} 9. Nge2 {[%clk 0:02:55]}  Rc8 {[%clk 0:02:54]} 10. Nf4 {[%clk 0:02:55]}  Bd7 {[%clk 0:02:52]} 11. h4 {[%clk 0:02:55]}  h5 {[%clk 0:02:52]} 12. Kb1 {[%clk 0:02:53]}  a6 {[%clk 0:02:51]} 13. Bc4 {[%clk 0:02:51]}  Ne5 {[%clk 0:02:50]} 14. Bb3 {[%clk 0:02:51]}  b5 {[%clk 0:02:44]} 15. Ncd5 {[%clk 0:02:48]}  Nxd5 {[%clk 0:02:42]} 16. Nxd5 {[%clk 0:02:49]}  O-O {[%clk 0:02:35]} 17. Bc3 {[%clk 0:02:34]}  a5 {[%clk 0:02:35]} 18. Qg5 {[%clk 0:02:10]}  Re8 {[%clk 0:02:09]} 19. Bxe5 {[%clk 0:01:48]}  Bxe5 {[%clk 0:02:04]} 20. Nf6+ {[%clk 0:01:40]}  Kf8 {[%clk 0:01:53]} 21. Qh6# {[%clk 0:01:39]} 1-0


[Site "https://www.chess.com"]

[Event "Titled Tuesday Blitz June 27 Late 2023"]
[White "Salem, A.R. Saleh"]
[Black "Tissir, Mohamed"]
[WhiteFideId "9301348"]
[BlackFideId "9000240"]
[WhiteElo "3005"]
[BlackElo "2510"]
[Result "1-0"]
[Round "1"]
[TimeControl "180+2"]
[Date "2023.06.27"]
[WhiteClock "0:00:20"]
[BlackClock "0:00:36"]
[Board "15"]

1. d4 {[%clk 0:02:06]}  Nf6 {[%clk 0:02:56]} 2. c4 {[%clk 0:02:04]}  g6 {[%clk 0:02:55]} 3. Nc3 {[%clk 0:02:04]}  Bg7 {[%clk 0:02:56]} 4. e4 {[%clk 0:02:04]}  d6 {[%clk 0:02:56]} 5. h3 {[%clk 0:02:05]}  O-O {[%clk 0:02:56]} 6. Be3 {[%clk 0:02:06]}  Nbd7 {[%clk 0:02:54]} 7. Nge2 {[%clk 0:02:05]}  a6 {[%clk 0:02:54]} 8. Qd2 {[%clk 0:02:04]}  c5 {[%clk 0:02:53]} 9. a4 {[%clk 0:02:03]}  cxd4 {[%clk 0:02:25]} 10. Nxd4 {[%clk 0:02:04]}  Nc5 {[%clk 0:02:26]} 11. Qc2 {[%clk 0:02:04]}  Ne6 {[%clk 0:02:25]} 12. Nf3 {[%clk 0:01:55]}  Bd7 {[%clk 0:02:23]} 13. Be2 {[%clk 0:01:52]}  Bc6 {[%clk 0:02:21]} 14. O-O {[%clk 0:01:52]}  Nd7 {[%clk 0:02:18]} 15. Rfd1 {[%clk 0:01:50]}  Ne5 {[%clk 0:02:16]} 16. Ne1 {[%clk 0:01:16]}  a5 {[%clk 0:02:09]} 17. f4 {[%clk 0:01:09]}  Bh6 {[%clk 0:02:09]} 18. Qd2 {[%clk 0:01:09]}  Nd7 {[%clk 0:02:07]} 19. Nf3 {[%clk 0:00:51]}  Nec5 {[%clk 0:02:01]} 20. Qc2 {[%clk 0:00:45]}  Rc8 {[%clk 0:02:01]} 21. Nd4 {[%clk 0:00:33]}  e5 {[%clk 0:01:46]} 22. Nxc6 {[%clk 0:00:33]}  bxc6 {[%clk 0:01:47]} 23. Rxd6 {[%clk 0:00:26]}  Qe7 {[%clk 0:01:47]} 24. Rad1 {[%clk 0:00:26]}  Bxf4 {[%clk 0:01:42]} 25. Bf2 {[%clk 0:00:27]}  Rfd8 {[%clk 0:01:35]} 26. Bg4 {[%clk 0:00:27]}  Ne6 {[%clk 0:01:31]} 27. Bxe6 {[%clk 0:00:26]}  fxe6 {[%clk 0:01:32]} 28. c5 {[%clk 0:00:26]}  Nf6 {[%clk 0:01:30]} 29. Qb3 {[%clk 0:00:25]}  Rxd6 {[%clk 0:01:28]} 30. cxd6 {[%clk 0:00:22]}  Qd7 {[%clk 0:01:27]} 31. Bc5 {[%clk 0:00:21]}  Nh5 {[%clk 0:01:24]} 32. Ne2 {[%clk 0:00:20]}  Bg5 {[%clk 0:01:22]} 33. Qc3 {[%clk 0:00:19]}  Nf4 {[%clk 0:01:20]} 34. Nxf4 {[%clk 0:00:20]}  Bxf4 {[%clk 0:01:20]} 35. Qxa5 {[%clk 0:00:19]}  h6 {[%clk 0:01:11]} 36. Qa7 {[%clk 0:00:19]}  Rd8 {[%clk 0:00:49]} 37. Qxd7 {[%clk 0:00:19]}  Rxd7 {[%clk 0:00:36]} 38. a5 {[%clk 0:00:20]} 1-0


[Site "https://www.chess.com"]

[Event "Titled Tuesday Blitz June 27 Late 2023"]
[White "Martinez Alcantara, Jose Eduardo"]
[Black "Martinez Reyes, Pedro Ramon"]
[WhiteFideId "3805662"]
[BlackFideId "3901807"]
[WhiteElo "3002"]
[BlackElo "2508"]
[Result "1-0"]
[Round "1"]
[TimeControl "180+2"]
[Date "2023.06.27"]
[WhiteClock "0:01:49"]
[BlackClock "0:00:11"]
[Board "17"]

1. e4 {[%clk 0:03:00]}  c5 {[%clk 0:02:58]} 2. Nf3 {[%clk 0:03:01]}  Nc6 {[%clk 0:02:59]} 3. c3 {[%clk 0:03:01]}  Nf6 {[%clk 0:02:53]} 4. Bd3 {[%clk 0:02:59]}  d5 {[%clk 0:02:51]} 5. e5 {[%clk 0:03:00]}  Ng4 {[%clk 0:02:49]} 6. Bb5 {[%clk 0:02:59]}  Bd7 {[%clk 0:02:37]} 7. Bxc6 {[%clk 0:02:58]}  bxc6 {[%clk 0:02:34]} 8. d3 {[%clk 0:02:57]}  Qc7 {[%clk 0:02:26]} 9. Qe2 {[%clk 0:02:57]}  h5 {[%clk 0:02:04]} 10. Bf4 {[%clk 0:02:51]}  e6 {[%clk 0:02:00]} 11. O-O {[%clk 0:02:48]}  Be7 {[%clk 0:01:55]} 12. h3 {[%clk 0:02:49]}  Nh6 {[%clk 0:01:54]} 13. c4 {[%clk 0:02:48]}  Nf5 {[%clk 0:01:53]} 14. Nc3 {[%clk 0:02:43]}  Rb8 {[%clk 0:01:53]} 15. b3 {[%clk 0:02:42]}  h4 {[%clk 0:01:52]} 16. Qd2 {[%clk 0:02:40]}  Rh5 {[%clk 0:01:42]} 17. cxd5 {[%clk 0:02:27]}  cxd5 {[%clk 0:01:40]} 18. Nxd5 {[%clk 0:02:27]}  exd5 {[%clk 0:01:32]} 19. e6 {[%clk 0:02:28]}  Bd6 {[%clk 0:01:27]} 20. exd7+ {[%clk 0:02:28]}  Kxd7 {[%clk 0:01:27]} 21. Bxd6 {[%clk 0:02:27]}  Qxd6 {[%clk 0:01:25]} 22. Rfe1 {[%clk 0:02:28]}  f6 {[%clk 0:01:19]} 23. Rac1 {[%clk 0:02:18]}  Rb4 {[%clk 0:01:05]} 24. d4 {[%clk 0:02:02]}  Nxd4 {[%clk 0:01:03]} 25. Nxd4 {[%clk 0:02:02]}  Rxd4 {[%clk 0:01:03]} 26. Qe2 {[%clk 0:02:03]}  Re5 {[%clk 0:01:01]} 27. Qb5+ {[%clk 0:02:00]}  Qc6 {[%clk 0:00:56]} 28. Qb8 {[%clk 0:02:00]}  Qc7 {[%clk 0:00:52]} 29. Qf8 {[%clk 0:01:53]}  Rxe1+ {[%clk 0:00:41]} 30. Rxe1 {[%clk 0:01:54]}  Kc6 {[%clk 0:00:35]} 31. Qe8+ {[%clk 0:01:50]}  Kb7 {[%clk 0:00:33]} 32. Qb5+ {[%clk 0:01:50]}  Qb6 {[%clk 0:00:15]} 33. Re7+ {[%clk 0:01:48]}  Kc8 {[%clk 0:00:11]} 34. Qd7+ {[%clk 0:01:49]} 1-0


[Site "https://www.chess.com"]

[Event "Titled Tuesday Blitz June 27 Late 2023"]
[White "Jovic, Stanoje"]
[Black "Bortnyk, Olexandr"]
[WhiteFideId "905020"]
[BlackFideId "14120828"]
[WhiteElo "2506"]
[BlackElo "2982"]
[Result "0-1"]
[Round "1"]
[TimeControl "180+2"]
[Date "2023.06.27"]
[WhiteClock "0:00:00"]
[BlackClock "0:00:05"]
[Board "20"]

1. c4 {[%clk 0:03:00]}  Nf6 {[%clk 0:02:56]} 2. g3 {[%clk 0:03:00]}  g6 {[%clk 0:02:55]} 3. Bg2 {[%clk 0:03:00]}  Bg7 {[%clk 0:02:56]} 4. Nc3 {[%clk 0:03:00]}  O-O {[%clk 0:02:57]} 5. Nf3 {[%clk 0:03:00]}  b6 {[%clk 0:02:56]} 6. O-O {[%clk 0:03:00]}  Bb7 {[%clk 0:02:51]} 7. Re1 {[%clk 0:03:00]}  c5 {[%clk 0:02:47]} 8. e4 {[%clk 0:02:58]}  d6 {[%clk 0:02:47]} 9. d4 {[%clk 0:02:57]}  cxd4 {[%clk 0:02:47]} 10. Nxd4 {[%clk 0:02:57]}  Nfd7 {[%clk 0:02:46]} 11. b3 {[%clk 0:02:53]}  Nc6 {[%clk 0:02:42]} 12. Nxc6 {[%clk 0:02:52]}  Bxc6 {[%clk 0:02:42]} 13. Bb2 {[%clk 0:02:52]}  Re8 {[%clk 0:02:35]} 14. Qd2 {[%clk 0:02:50]}  Qc8 {[%clk 0:02:30]} 15. Rac1 {[%clk 0:02:44]}  Qb7 {[%clk 0:02:28]} 16. h4 {[%clk 0:02:39]}  Nf6 {[%clk 0:02:23]} 17. Nd5 {[%clk 0:02:36]}  Bxd5 {[%clk 0:02:18]} 18. cxd5 {[%clk 0:02:28]}  Rac8 {[%clk 0:02:17]} 19. Rc6 {[%clk 0:02:24]}  Nd7 {[%clk 0:02:07]} 20. Bxg7 {[%clk 0:02:17]}  Kxg7 {[%clk 0:02:08]} 21. Rec1 {[%clk 0:02:16]}  Kg8 {[%clk 0:02:00]} 22. h5 {[%clk 0:02:13]}  Ne5 {[%clk 0:01:57]} 23. hxg6 {[%clk 0:01:47]}  hxg6 {[%clk 0:01:55]} 24. R6c2 {[%clk 0:01:41]}  Rxc2 {[%clk 0:01:48]} 25. Qxc2 {[%clk 0:01:38]}  Qa6 {[%clk 0:01:48]} 26. a4 {[%clk 0:01:31]}  Kg7 {[%clk 0:01:36]} 27. f4 {[%clk 0:01:28]}  Nd7 {[%clk 0:01:23]} 28. Qc3+ {[%clk 0:01:27]}  Kg8 {[%clk 0:01:08]} 29. Bf1 {[%clk 0:01:25]}  Qb7 {[%clk 0:01:03]} 30. Qc6 {[%clk 0:01:21]}  Rb8 {[%clk 0:00:42]} 31. b4 {[%clk 0:01:12]}  a5 {[%clk 0:00:39]} 32. Bb5 {[%clk 0:00:59]}  Nf6 {[%clk 0:00:39]} 33. bxa5 {[%clk 0:00:51]}  bxa5 {[%clk 0:00:38]} 34. Qxb7 {[%clk 0:00:44]}  Rxb7 {[%clk 0:00:39]} 35. Rc4 {[%clk 0:00:44]}  e6 {[%clk 0:00:33]} 36. dxe6 {[%clk 0:00:43]}  fxe6 {[%clk 0:00:33]} 37. Kf2 {[%clk 0:00:42]}  Kf7 {[%clk 0:00:30]} 38. Ke3 {[%clk 0:00:41]}  d5 {[%clk 0:00:28]} 39. exd5 {[%clk 0:00:39]}  Nxd5+ {[%clk 0:00:29]} 40. Kd4 {[%clk 0:00:37]}  Ne7 {[%clk 0:00:11]} 41. g4 {[%clk 0:00:34]}  Kf6 {[%clk 0:00:09]} 42. Rc1 {[%clk 0:00:31]}  Nd5 {[%clk 0:00:08]} 43. Rf1 {[%clk 0:00:25]}  Rc7 {[%clk 0:00:07]} 44. g5+ {[%clk 0:00:25]}  Kg7 {[%clk 0:00:07]} 45. Bc4 {[%clk 0:00:21]}  Nb6 {[%clk 0:00:05]} 46. Bxe6 {[%clk 0:00:20]}  Nxa4 {[%clk 0:00:05]} 47. Ra1 {[%clk 0:00:18]}  Nc5 {[%clk 0:00:04]} 48. f5 {[%clk 0:00:15]}  gxf5 {[%clk 0:00:03]} 49. Bxf5 {[%clk 0:00:15]}  Nb3+ {[%clk 0:00:04]} 50. Kd5 {[%clk 0:00:00]}  Nxa1 {[%clk 0:00:05]} 0-1


[Site "https://www.chess.com"]

[Event "Titled Tuesday Blitz June 27 Late 2023"]
[White "ArchibaldCerveza29"]
[Black "Korobov, Anton"]
[BlackFideId "14105730"]
[WhiteElo "2501"]
[BlackElo "2972"]
[Result "0-1"]
[Round "1"]
[TimeControl "180+2"]
[Date "2023.06.27"]
[WhiteClock "0:00:02"]
[BlackClock "0:02:11"]
[Board "22"]

1. d4 {[%clk 0:02:58]}  Nf6 {[%clk 0:02:56]} 2. Nf3 {[%clk 0:02:56]}  e6 {[%clk 0:02:56]} 3. g3 {[%clk 0:02:53]}  b5 {[%clk 0:02:55]} 4. Bg2 {[%clk 0:02:51]}  Bb7 {[%clk 0:02:56]} 5. O-O {[%clk 0:02:51]}  d5 {[%clk 0:02:56]} 6. Nbd2 {[%clk 0:02:47]}  Nbd7 {[%clk 0:02:56]} 7. Re1 {[%clk 0:02:47]}  c5 {[%clk 0:02:55]} 8. b3 {[%clk 0:02:42]}  Rc8 {[%clk 0:02:49]} 9. Bb2 {[%clk 0:02:40]}  c4 {[%clk 0:02:49]} 10. c3 {[%clk 0:02:28]}  Be7 {[%clk 0:02:48]} 11. Ne5 {[%clk 0:02:24]}  Nxe5 {[%clk 0:02:45]} 12. dxe5 {[%clk 0:02:25]}  Ng4 {[%clk 0:02:43]} 13. e4 {[%clk 0:02:11]}  Nxe5 {[%clk 0:02:43]} 14. exd5 {[%clk 0:02:07]}  Nd3 {[%clk 0:02:42]} 15. dxe6 {[%clk 0:01:57]}  Bxg2 {[%clk 0:02:42]} 16. exf7+ {[%clk 0:01:57]}  Kxf7 {[%clk 0:02:42]} 17. Kxg2 {[%clk 0:01:50]}  Qd5+ {[%clk 0:02:42]} 18. Nf3 {[%clk 0:01:46]}  Rhd8 {[%clk 0:02:32]} 19. Rxe7+ {[%clk 0:00:58]}  Kxe7 {[%clk 0:02:30]} 20. Ba3+ {[%clk 0:00:59]}  Kf7 {[%clk 0:02:28]} 21. Qd2 {[%clk 0:00:50]}  Kg8 {[%clk 0:02:24]} 22. h4 {[%clk 0:00:44]}  Rc6 {[%clk 0:02:17]} 23. Qg5 {[%clk 0:00:25]}  Qxg5 {[%clk 0:02:11]} 24. hxg5 {[%clk 0:00:19]}  cxb3 {[%clk 0:02:11]} 25. axb3 {[%clk 0:00:19]}  Rxc3 {[%clk 0:02:11]} 26. Be7 {[%clk 0:00:18]}  Rd7 {[%clk 0:02:11]} 27. Ba3 {[%clk 0:00:02]}  b4 {[%clk 0:02:11]} 0-1


[Site "https://www.chess.com"]